fUSD/lending_fUSD_20260613
["ID","MTS","AMOUNT","RATE_DAILY","PERIOD"]
[424935121,1781298670000,500.0,7.727e-05,2]
[424935122,1781298671000,377.31691647,8.077e-05,2]
[424935125,1781298693000,9748.60727457,7.727e-05,2]
[424935126,1781298693000,2176.27872541,7.727e-05,2]
[424935124,1781298693000,150.0,8.174e-05,2]
[424935123,1781298693000,-300.0,8.427e-05,2]
[424935127,1781298744000,-150.0,7.726e-05,2]
[424935128,1781298745000,150.0,7.494e-05,2]
[424935129,1781298801000,150.0,7.492e-05,2]
[424935130,1781298809000,2729.53,7.573e-05,2]
[424935131,1781298810000,191.546,7.573e-05,2]
[424935132,1781298857000,500.0,7.521e-05,2]
[424935133,1781298902000,-500.0,7.627e-05,2]
[424935134,1781298955000,-1500.0,7.689e-05,2]
[424935135,1781298956000,879.26,7.577e-05,2]
[424935136,1781298957000,384.3903,7.589e-05,2]
[424935137,1781298980000,-352.42,7.689e-05,2]
[424935139,1781299033000,63227.04,7.477e-05,2]
[424935138,1781299033000,-198.21,7.615e-05,2]
[424935140,1781299035000,150.0,7.551e-05,2]
[424935141,1781299086000,-150.0,7.626e-05,2]
[424935142,1781299140000,-250.0,7.656e-05,2]
[424935143,1781299166000,150.0,7.426e-05,2]
[424935144,1781299194000,-150.0,7.677e-05,2]
[424935145,1781299195000,299.03,7.406e-05,2]
[424935146,1781299247000,-300.0,7.697e-05,2]
[424935147,1781299300000,-1024.0406,7.627e-05,2]
[424935148,1781299301000,1971.58,7.454e-05,2]
[424935149,1781299354000,-1529.7077936,7.627e-05,2]
[424935150,1781299409000,2183.624,7.573e-05,2]
[424935151,1781299489000,-150.0,7.625e-05,2]
[424935152,1781299502000,427.97,7.483e-05,2]
[424935153,1781299542000,-155.0,7.624e-05,2]
[424935155,1781299543000,-171.53220766,7.625e-05,2]
[424935156,1781299543000,-279.89774829,7.625e-05,2]
[424935157,1781299543000,-44.89749714,7.625e-05,2]
[424935154,1781299543000,-250.0,7.625e-05,2]
[424935158,1781299554000,200.0,7.516e-05,2]
[424935159,1781299570000,2348.35,7.539e-05,2]
[424935161,1781299595000,1852.42,7.507e-05,2]
[424935160,1781299595000,-455.10250286,7.625e-05,2]
[424935168,1781299628000,-500.0,7.625e-05,2]
[424935169,1781299628000,-240.68249212,7.625e-05,2]
[424935167,1781299628000,-500.0,7.625e-05,2]
[424935166,1781299628000,-409.4515932,7.625e-05,2]
[424935164,1781299628000,-221.09841546,7.625e-05,2]
[424935165,1781299628000,-500.0,7.625e-05,2]
[424935162,1781299628000,-150.0,7.624e-05,2]
[424935163,1781299628000,-500.0,7.625e-05,2]
[424935171,1781299649000,-236.57979269,7.625e-05,2]
[424935170,1781299649000,-259.31750788,7.625e-05,2]
[424935172,1781299652000,-291.92358171,7.625e-05,2]
[424935173,1781299669000,13456.09557107,7.553e-05,2]
[424935174,1781299670000,35510.84910828,7.553e-05,2]
[424935175,1781299702000,-213.9,7.625e-05,2]
[424935181,1781299703000,1067.41889332,7.525e-05,2]
[424935180,1781299703000,161.61463404,7.525e-05,2]
[424935179,1781299703000,164.85,7.525e-05,2]
[424935178,1781299703000,466.05,7.525e-05,2]
[424935177,1781299703000,431.51306045,7.525e-05,2]
[424935176,1781299703000,259711.41510209,7.525e-05,2]
[424935183,1781299756000,159.55,5e-05,120]
[424935182,1781299756000,-999.99,7.525e-05,2]
[424935185,1781299757000,-38126.8314,7.525e-05,2]
[424935184,1781299757000,-622.3867202,7.525e-05,2]
[424935186,1781299779000,-24031.33420913,7.525e-05,2]
[424935187,1781299779000,-1033.397554,7.525e-05,2]
[424935188,1781299779000,-26673.14216,7.525e-05,2]
[424935190,1781299779000,-310.02280945,7.525e-05,2]
[424935189,1781299779000,-1948.32316134,7.525e-05,2]
[424935193,1781299780000,-3365.88172788,7.525e-05,2]
[424935192,1781299780000,-3365.88172788,7.525e-05,2]
[424935191,1781299780000,-17965.38352,7.525e-05,2]
[424935194,1781299781000,-426.04965291,7.525e-05,2]
[424935195,1781299802000,-24031.33420913,7.525e-05,2]
[424935198,1781299803000,-1202.29161566,7.525e-05,2]
[424935197,1781299803000,-3509.03799006,7.525e-05,2]
[424935196,1781299803000,-3509.03799006,7.525e-05,2]
[424935199,1781299825000,-999.99,7.525e-05,2]
[424935253,1781299847000,-285.35207678,7.524e-05,2]
[424935288,1781299848000,-500.0,7.625e-05,2]
[424935274,1781299848000,-500.0,7.625e-05,2]
[424935275,1781299848000,-500.0,7.625e-05,2]
[424935278,1781299848000,-500.0,7.625e-05,2]
[424935280,1781299848000,-500.0,7.625e-05,2]
[424935279,1781299848000,-500.0,7.625e-05,2]
[424935281,1781299848000,-419.46913193,7.625e-05,2]
[424935282,1781299848000,-500.0,7.625e-05,2]
[424935289,1781299848000,-500.0,7.625e-05,2]
[424935285,1781299848000,-500.0,7.625e-05,2]
[424935284,1781299848000,-500.0,7.625e-05,2]
[424935286,1781299848000,-500.0,7.625e-05,2]
[424935287,1781299848000,-500.0,7.625e-05,2]
[424935276,1781299848000,-500.0,7.625e-05,2]
[424935291,1781299848000,-500.0,7.625e-05,2]
[424935293,1781299848000,-500.0,7.625e-05,2]
[424935295,1781299848000,-500.0,7.625e-05,2]
[424935283,1781299848000,-500.0,7.625e-05,2]
[424935277,1781299848000,-500.0,7.625e-05,2]
[424935267,1781299848000,-500.0,7.625e-05,2]
[424935271,1781299848000,-500.0,7.625e-05,2]
[424935254,1781299848000,-307.20977893,7.524e-05,2]
[424935255,1781299848000,-192.79022107,7.524e-05,2]
[424935256,1781299848000,-4261.77131909,7.525e-05,2]
[424935257,1781299848000,-6775.42776994,7.525e-05,2]
[424935258,1781299848000,-8746.99044034,7.525e-05,2]
[424935259,1781299848000,-2038442.38207414,7.525e-05,2]
[424935262,1781299848000,-150.0,7.599e-05,2]
[424935263,1781299848000,-621.93153825,7.624e-05,2]
[424935272,1781299848000,-500.0,7.625e-05,2]
[424935260,1781299848000,-29598.57342023,7.525e-05,2]
[424935264,1781299848000,-500.0,7.625e-05,2]
[424935266,1781299848000,-500.0,7.625e-05,2]
[424935265,1781299848000,-500.0,7.625e-05,2]
[424935268,1781299848000,-500.0,7.625e-05,2]
[424935292,1781299848000,-500.0,7.625e-05,2]
[424935269,1781299848000,-500.0,7.625e-05,2]
[424935270,1781299848000,-500.0,7.625e-05,2]
[424935273,1781299848000,-500.0,7.625e-05,2]
[424935261,1781299848000,-150.0,7.575e-05,2]
[424935297,1781299848000,-500.0,7.625e-05,2]
[424935290,1781299848000,-500.0,7.625e-05,2]
[424935294,1781299848000,-500.0,7.625e-05,2]
[424935320,1781299848000,-500.0,7.625e-05,2]
[424935317,1781299848000,-500.0,7.625e-05,2]
[424935319,1781299848000,-500.0,7.625e-05,2]
[424935324,1781299848000,-500.0,7.625e-05,2]
[424935322,1781299848000,-500.0,7.625e-05,2]
[424935323,1781299848000,-500.0,7.625e-05,2]
[424935325,1781299848000,-500.0,7.625e-05,2]
[424935327,1781299848000,-500.0,7.625e-05,2]
[424935296,1781299848000,-500.0,7.625e-05,2]
[424935329,1781299848000,-500.0,7.625e-05,2]
[424935331,1781299848000,-500.0,7.625e-05,2]
[424935334,1781299848000,-160.0,7.629e-05,2]
[424935333,1781299848000,-600.00000001,7.625e-05,2]
[424935335,1781299848000,-160.0,7.641e-05,2]
[424935332,1781299848000,-500.0,7.625e-05,2]
[424935330,1781299848000,-500.0,7.625e-05,2]
[424935336,1781299848000,-499.93,7.671e-05,2]
[424935338,1781299848000,-1000.0,7.696e-05,2]
[424935337,1781299848000,-150.0,7.674e-05,2]
[424935321,1781299848000,-500.0,7.625e-05,2]
[424935328,1781299848000,-500.0,7.625e-05,2]
[424935326,1781299848000,-500.0,7.625e-05,2]
[424935316,1781299848000,-500.0,7.625e-05,2]
[424935318,1781299848000,-500.0,7.625e-05,2]
[424935301,1781299848000,-500.0,7.625e-05,2]
[424935302,1781299848000,-500.0,7.625e-05,2]
[424935298,1781299848000,-500.0,7.625e-05,2]
[424935299,1781299848000,-500.0,7.625e-05,2]
[424935303,1781299848000,-500.0,7.625e-05,2]
[424935304,1781299848000,-500.0,7.625e-05,2]
[424935305,1781299848000,-500.0,7.625e-05,2]
[424935307,1781299848000,-500.0,7.625e-05,2]
[424935300,1781299848000,-500.0,7.625e-05,2]
[424935315,1781299848000,-500.0,7.625e-05,2]
[424935306,1781299848000,-500.0,7.625e-05,2]
[424935314,1781299848000,-500.0,7.625e-05,2]
[424935311,1781299848000,-500.0,7.625e-05,2]
[424935312,1781299848000,-500.0,7.625e-05,2]
[424935310,1781299848000,-500.0,7.625e-05,2]
[424935309,1781299848000,-500.0,7.625e-05,2]
[424935308,1781299848000,-500.0,7.625e-05,2]
[424935313,1781299848000,-348.50630161,7.625e-05,2]
[424935361,1781299849000,-159.73,8.219e-05,2]
[424935345,1781299849000,-644.12,7.865e-05,2]
[424935359,1781299849000,-1423.39,8.219e-05,2]
[424935356,1781299849000,-1816.34,8.219e-05,2]
[424935353,1781299849000,-500.0,8.219e-05,2]
[424935355,1781299849000,-382.12463944,8.219e-05,2]
[424935354,1781299849000,-500.0,8.219e-05,2]
[424935352,1781299849000,-4660.19,8.058e-05,2]
[424935347,1781299849000,-435.84,8.058e-05,2]
[424935348,1781299849000,-9999.99,8.058e-05,2]
[424935339,1781299849000,-222.63972367,7.697e-05,2]
[424935349,1781299849000,-150.99,8.058e-05,2]
[424935344,1781299849000,-224.0,7.75e-05,2]
[424935343,1781299849000,-154.87243249,7.727e-05,2]
[424935350,1781299849000,-6503.63,8.058e-05,2]
[424935351,1781299849000,-999.99,8.058e-05,2]
[424935342,1781299849000,-151.0,7.724e-05,2]
[424935341,1781299849000,-12102.5746491,7.699e-05,2]
[424935340,1781299849000,-11395.4253509,7.699e-05,2]
[424935358,1781299849000,-500.0,8.219e-05,2]
[424935346,1781299849000,-299.99,8.058e-05,2]
[424935360,1781299849000,-4731.05,8.219e-05,2]
[424935357,1781299849000,-162.92,8.219e-05,2]
[424935364,1781299849000,-633.2636339,8.277e-05,2]
[424935382,1781299849000,-499.341204,8.593e-05,2]
[424935384,1781299849000,-500.0,8.644e-05,2]
[424935383,1781299849000,-500.0,8.644e-05,2]
[424935380,1781299849000,-151.0,8.59e-05,2]
[424935381,1781299849000,-151.0,8.59e-05,2]
[424935362,1781299849000,-300.0,8.277e-05,2]
[424935378,1781299849000,-500.0,8.584e-05,2]
[424935377,1781299849000,-1014.1049555,8.51e-05,2]
[424935376,1781299849000,-500.0,8.493e-05,2]
[424935375,1781299849000,-250.0,8.388e-05,2]
[424935372,1781299849000,-500.0,8.388e-05,2]
[424935379,1781299849000,-13176.6181622,8.587e-05,2]
[424935368,1781299849000,-250.0,8.386e-05,2]
[424935374,1781299849000,-500.0,8.388e-05,2]
[424935370,1781299849000,-265.31865506,8.388e-05,2]
[424935373,1781299849000,-500.0,8.388e-05,2]
[424935366,1781299849000,-300.0,8.278e-05,2]
[424935385,1781299849000,-500.0,8.644e-05,2]
[424935369,1781299849000,-250.0,8.388e-05,2]
[424935367,1781299849000,-193.33491251,8.278e-05,2]
[424935365,1781299849000,-3815.50779079,8.278e-05,2]
[424935363,1781299849000,-500.0,8.277e-05,2]
[424935371,1781299849000,-300.0,8.388e-05,2]
[424935401,1781299850000,-500.0,8.644e-05,2]
[424935400,1781299850000,-500.0,8.644e-05,2]
[424935407,1781299850000,-171.91306596,8.832e-05,2]
[424935410,1781299850000,-152.0,8.927e-05,2]
[424935402,1781299850000,-500.0,8.644e-05,2]
[424935404,1781299850000,-544.56840726,8.644e-05,2]
[424935409,1781299850000,-644.12,8.849e-05,2]
[424935405,1781299850000,-166.12,8.694e-05,2]
[424935406,1781299850000,-155.87880589,8.816e-05,2]
[424935403,1781299850000,-500.0,8.644e-05,2]
[424935408,1781299850000,-171.91306595,8.832e-05,2]
[424935399,1781299850000,-500.0,8.644e-05,2]
[424935386,1781299850000,-500.0,8.644e-05,2]
[424935391,1781299850000,-500.0,8.644e-05,2]
[424935392,1781299850000,-500.0,8.644e-05,2]
[424935393,1781299850000,-500.0,8.644e-05,2]
[424935390,1781299850000,-500.0,8.644e-05,2]
[424935396,1781299850000,-500.0,8.644e-05,2]
[424935395,1781299850000,-500.0,8.644e-05,2]
[424935394,1781299850000,-504.63623623,8.644e-05,2]
[424935389,1781299850000,-500.0,8.644e-05,2]
[424935388,1781299850000,-500.0,8.644e-05,2]
[424935411,1781299850000,-151.0,8.927e-05,2]
[424935387,1781299850000,-500.0,8.644e-05,2]
[424935397,1781299850000,-500.0,8.644e-05,2]
[424935420,1781299850000,-151.0,0.0001,2]
[424935398,1781299850000,-500.0,8.644e-05,2]
[424935413,1781299850000,-904.71246127,9.04e-05,2]
[424935416,1781299850000,-6144.84541626,9.337e-05,2]
[424935438,1781299850000,-151.0,0.00010337,2]
[424935437,1781299850000,-151.0,0.00010337,2]
[424935435,1781299850000,-52864.82920818,0.000103,2]
[424935436,1781299850000,-151.0,0.00010337,2]
[424935433,1781299850000,-562.48008064,0.000103,2]
[424935434,1781299850000,-1093.0,0.000103,2]
[424935431,1781299850000,-1742.6054862,0.000103,5]
[424935432,1781299850000,-88.37495317,0.000103,5]
[424935426,1781299850000,-5530.0,0.000101,3]
[424935428,1781299850000,-1816.34,0.00010274,2]
[424935429,1781299850000,-1760.77,0.00010278,2]
[424935439,1781299850000,-153.028596,0.00010337,2]
[424935430,1781299850000,-3699.01956063,0.000103,5]
[424935418,1781299850000,-644.12,9.832e-05,2]
[424935419,1781299850000,-907.8229342,9.909e-05,2]
[424935412,1781299850000,-250.0,8.975e-05,2]
[424935427,1781299850000,-62645.34706243,0.00010153,2]
[424935415,1781299850000,-164.02,9.313e-05,2]
[424935417,1781299850000,-41496.72443555,9.337e-05,2]
[424935422,1781299850000,-163.66,0.0001,2]
[424935421,1781299850000,-33474.0,0.0001,2]
[424935424,1781299850000,-274.23187019,0.0001,2]
[424935423,1781299850000,-152.79432134,0.0001,2]
[424935425,1781299850000,-1760.77,0.00010027,2]
[424935414,1781299850000,-1816.34,9.247e-05,2]
[424935478,1781299851000,-1664.45992243,0.00011099,2]
[424935475,1781299851000,-8547.94673494,0.00011099,2]
[424935476,1781299851000,-8547.94673494,0.00011099,2]
[424935472,1781299851000,-8547.94673494,0.00011099,2]
[424935468,1781299851000,-300.0,0.00011098,2]
[424935469,1781299851000,-300.0,0.00011098,2]
[424935471,1781299851000,-300.0,0.00011098,2]
[424935474,1781299851000,-8547.94673494,0.00011099,2]
[424935470,1781299851000,-300.0,0.00011098,2]
[424935473,1781299851000,-8547.94673494,0.00011099,2]
[424935483,1781299851000,-126797.9526,0.00011153,2]
[424935489,1781299851000,-1816.34,0.00011301,2]
[424935485,1781299851000,-166.66,0.00011178,2]
[424935484,1781299851000,-217.71,0.00011158,2]
[424935480,1781299851000,-1664.45992243,0.00011099,2]
[424935487,1781299851000,-164.33,0.00011264,2]
[424935481,1781299851000,-1664.45992243,0.00011099,2]
[424935479,1781299851000,-1664.45992243,0.00011099,2]
[424935486,1781299851000,-161.09,0.00011233,2]
[424935488,1781299851000,-166.66,0.00011288,2]
[424935491,1781299851000,-1357.31,0.000114,2]
[424935490,1781299851000,-166.66,0.00011397,2]
[424935467,1781299851000,-166.66,0.00011068,2]
[424935482,1781299851000,-93713.69263327,0.00011153,2]
[424935466,1781299851000,-1683.80401505,0.00011053,2]
[424935453,1781299851000,-500.0,0.00010958,2]
[424935461,1781299851000,-166.66,0.00010959,2]
[424935492,1781299851000,-165.454,0.00011418,2]
[424935440,1781299851000,-164.33,0.00010405,2]
[424935442,1781299851000,-1760.77,0.00010779,2]
[424935441,1781299851000,-1760.77,0.00010529,2]
[424935444,1781299851000,-164.33,0.00010834,2]
[424935443,1781299851000,-644.12,0.00010815,2]
[424935445,1781299851000,-161.58083644,0.00010898,2]
[424935446,1781299851000,-1955.92646404,0.000109,2]
[424935454,1781299851000,-500.0,0.00010958,2]
[424935447,1781299851000,-1955.92646399,0.000109,2]
[424935449,1781299851000,-1955.92646399,0.000109,2]
[424935464,1781299851000,-338.37495326,0.00011,2]
[424935448,1781299851000,-1955.92646399,0.000109,2]
[424935450,1781299851000,-500.0,0.00010958,2]
[424935452,1781299851000,-500.0,0.00010958,2]
[424935455,1781299851000,-500.0,0.00010958,2]
[424935457,1781299851000,-500.0,0.00010958,2]
[424935456,1781299851000,-500.0,0.00010958,2]
[424935462,1781299851000,-150.0,0.00010959,2]
[424935463,1781299851000,-8686.0196,0.00010999,2]
[424935458,1781299851000,-500.0,0.00010958,2]
[424935459,1781299851000,-222.73823727,0.00010958,2]
[424935465,1781299851000,-1760.77,0.0001103,2]
[424935460,1781299851000,-150.0,0.00010959,2]
[424935451,1781299851000,-500.0,0.00010958,2]
[424935494,1781299851000,-166.66,0.00011507,2]
[424935477,1781299851000,-1664.45992245,0.00011099,2]
[424935493,1781299851000,-1358.0,0.00011418,2]
[424935528,1781299851000,-195.348,0.00012232,2]
[424935525,1781299851000,-242.103,0.00012232,2]
[424935526,1781299851000,-167.685,0.00012232,2]
[424935530,1781299851000,-250.0,0.00012232,2]
[424935524,1781299851000,-250.0,0.00012232,2]
[424935531,1781299851000,-247.772,0.00012232,2]
[424935527,1781299851000,-250.0,0.00012232,2]
[424935529,1781299851000,-167.555,0.00012232,2]
[424935533,1781299851000,-794.0,0.00012297,5]
[424935532,1781299851000,-189.0,0.00012232,2]
[424935535,1781299851000,-1816.34,0.00012329,2]
[424935523,1781299851000,-248.119,0.00012232,2]
[424935538,1781299851000,-181.76121928,0.00012329,2]
[424935539,1781299851000,-244.28,0.000124,2]
[424935540,1781299851000,-1000.0,0.000124,2]
[424935542,1781299851000,-500.0,0.00012466,2]
[424935537,1781299851000,-181.76121929,0.00012329,2]
[424935534,1781299851000,-770.0,0.00012297,5]
[424935541,1781299851000,-1664.45992243,0.00012441,2]
[424935546,1781299851000,-10000.0,0.000125,2]
[424935544,1781299851000,-15000.0,0.000125,2]
[424935547,1781299851000,-10000.0,0.000125,2]
[424935543,1781299851000,-300.0,0.00012499,2]
[424935499,1781299851000,-300.0,0.00011674,2]
[424935536,1781299851000,-260.66,0.00012329,2]
[424935521,1781299851000,-250.0,0.00012232,2]
[424935548,1781299851000,-500.0,0.000125,2]
[424935518,1781299851000,-150.0,0.00012232,2]
[424935500,1781299851000,-300.0,0.00011674,2]
[424935498,1781299851000,-1664.45992243,0.00011622,2]
[424935495,1781299851000,-1423.39,0.00011507,2]
[424935497,1781299851000,-8547.94673494,0.000116,2]
[424935496,1781299851000,-200.0,0.00011536,2]
[424935501,1781299851000,-300.0,0.00011674,2]
[424935502,1781299851000,-307.59763668,0.00011674,2]
[424935522,1781299851000,-232.981,0.00012232,2]
[424935506,1781299851000,-151.0,0.00011701,2]
[424935504,1781299851000,-151.0,0.00011701,2]
[424935505,1781299851000,-151.0,0.00011701,2]
[424935503,1781299851000,-164.33,0.00011693,2]
[424935508,1781299851000,-1955.92646399,0.00011739,2]
[424935507,1781299851000,-151.0,0.00011701,2]
[424935545,1781299851000,-6111.0,0.000125,2]
[424935509,1781299851000,-644.12,0.00011798,2]
[424935519,1781299851000,-278.0,0.00012232,2]
[424935520,1781299851000,-220.0,0.00012232,2]
[424935515,1781299851000,-382.0,0.00012166,2]
[424935513,1781299851000,-476.733889,0.00011982,2]
[424935516,1781299851000,-1228.524,0.00012166,2]
[424935517,1781299851000,-532.0,0.00012173,5]
[424935512,1781299851000,-308.969972,0.00011923,2]
[424935511,1781299851000,-234.484986,0.00011923,2]
[424935510,1781299851000,-160.0,0.00011923,2]
[424935514,1781299851000,-164.33,0.00012122,2]
[424935583,1781299852000,-500.0,0.000125,2]
[424935586,1781299852000,-500.0,0.000125,2]
[424935585,1781299852000,-500.0,0.000125,2]
[424935582,1781299852000,-500.0,0.000125,2]
[424935575,1781299852000,-500.0,0.000125,2]
[424935580,1781299852000,-500.0,0.000125,2]
[424935579,1781299852000,-500.0,0.000125,2]
[424935578,1781299852000,-500.0,0.000125,2]
[424935577,1781299852000,-500.0,0.000125,2]
[424935581,1781299852000,-500.0,0.000125,2]
[424935590,1781299852000,-500.0,0.000125,2]
[424935600,1781299852000,-500.0,0.000125,2]
[424935591,1781299852000,-500.0,0.000125,2]
[424935595,1781299852000,-500.0,0.000125,2]
[424935589,1781299852000,-500.0,0.000125,2]
[424935587,1781299852000,-500.0,0.000125,2]
[424935593,1781299852000,-500.0,0.000125,2]
[424935594,1781299852000,-500.0,0.000125,2]
[424935592,1781299852000,-500.0,0.000125,2]
[424935597,1781299852000,-500.0,0.000125,2]
[424935596,1781299852000,-500.0,0.000125,2]
[424935598,1781299852000,-500.0,0.000125,2]
[424935576,1781299852000,-500.0,0.000125,2]
[424935588,1781299852000,-500.0,0.000125,2]
[424935584,1781299852000,-500.0,0.000125,2]
[424935556,1781299852000,-500.0,0.000125,2]
[424935565,1781299852000,-500.0,0.000125,2]
[424935599,1781299852000,-500.0,0.000125,2]
[424935550,1781299852000,-500.0,0.000125,2]
[424935552,1781299852000,-500.0,0.000125,2]
[424935549,1781299852000,-500.0,0.000125,2]
[424935551,1781299852000,-500.0,0.000125,2]
[424935554,1781299852000,-500.0,0.000125,2]
[424935553,1781299852000,-500.0,0.000125,2]
[424935555,1781299852000,-500.0,0.000125,2]
[424935557,1781299852000,-500.0,0.000125,2]
[424935563,1781299852000,-500.0,0.000125,2]
[424935558,1781299852000,-500.0,0.000125,2]
[424935560,1781299852000,-500.0,0.000125,2]
[424935561,1781299852000,-500.0,0.000125,2]
[424935559,1781299852000,-500.0,0.000125,2]
[424935566,1781299852000,-500.0,0.000125,2]
[424935564,1781299852000,-500.0,0.000125,2]
[424935569,1781299852000,-500.0,0.000125,2]
[424935571,1781299852000,-500.0,0.000125,2]
[424935573,1781299852000,-500.0,0.000125,2]
[424935572,1781299852000,-500.0,0.000125,2]
[424935574,1781299852000,-500.0,0.000125,2]
[424935567,1781299852000,-500.0,0.000125,2]
[424935568,1781299852000,-500.0,0.000125,2]
[424935570,1781299852000,-500.0,0.000125,2]
[424935601,1781299852000,-500.0,0.000125,2]
[424935562,1781299852000,-500.0,0.000125,2]
[424935606,1781299852000,-500.0,0.000125,2]
[424935632,1781299852000,-500.0,0.000125,2]
[424935635,1781299852000,-7533.58216621,0.00012543,2]
[424935631,1781299852000,-500.0,0.000125,2]
[424935636,1781299852000,-5798.42324057,0.00012554,2]
[424935633,1781299852000,-391.926367,0.000125,2]
[424935634,1781299852000,-319.752254,0.00012519,2]
[424935638,1781299852000,-216.697222,0.00012581,2]
[424935641,1781299852000,-317.77,0.00012902,2]
[424935642,1781299852000,-15291.34377432,0.00013,5]
[424935644,1781299852000,-317.77,0.00013012,2]
[424935643,1781299852000,-301.52,0.00013,2]
[424935647,1781299852000,-317.77,0.00013168,2]
[424935648,1781299852000,-350.0,0.00013178,2]
[424935639,1781299852000,-317.77,0.00012636,2]
[424935646,1781299852000,-350.0,0.00013159,2]
[424935645,1781299852000,-317.77,0.00013097,2]
[424935654,1781299852000,-500.0,0.00013356,2]
[424935652,1781299852000,-317.77,0.0001334,2]
[424935650,1781299852000,-1664.45992243,0.00013261,2]
[424935649,1781299852000,-317.77,0.00013231,2]
[424935653,1781299852000,-500.0,0.00013356,2]
[424935651,1781299852000,-317.77,0.00013287,2]
[424935603,1781299852000,-500.0,0.000125,2]
[424935628,1781299852000,-500.0,0.000125,2]
[424935637,1781299852000,-199.5,0.00012575,2]
[424935640,1781299852000,-1955.92646399,0.00012793,2]
[424935629,1781299852000,-500.0,0.000125,2]
[424935605,1781299852000,-500.0,0.000125,2]
[424935630,1781299852000,-500.0,0.000125,2]
[424935602,1781299852000,-500.0,0.000125,2]
[424935607,1781299852000,-500.0,0.000125,2]
[424935609,1781299852000,-500.0,0.000125,2]
[424935610,1781299852000,-500.0,0.000125,2]
[424935608,1781299852000,-500.0,0.000125,2]
[424935614,1781299852000,-500.0,0.000125,2]
[424935612,1781299852000,-500.0,0.000125,2]
[424935617,1781299852000,-500.0,0.000125,2]
[424935611,1781299852000,-500.0,0.000125,2]
[424935616,1781299852000,-500.0,0.000125,2]
[424935604,1781299852000,-500.0,0.000125,2]
[424935613,1781299852000,-500.0,0.000125,2]
[424935619,1781299852000,-500.0,0.000125,2]
[424935618,1781299852000,-500.0,0.000125,2]
[424935621,1781299852000,-500.0,0.000125,2]
[424935620,1781299852000,-500.0,0.000125,2]
[424935622,1781299852000,-500.0,0.000125,2]
[424935623,1781299852000,-500.0,0.000125,2]
[424935624,1781299852000,-500.0,0.000125,2]
[424935625,1781299852000,-500.0,0.000125,2]
[424935626,1781299852000,-500.0,0.000125,2]
[424935615,1781299852000,-500.0,0.000125,2]
[424935627,1781299852000,-500.0,0.000125,2]
[424935690,1781299853000,-317.77,0.00013666,2]
[424935687,1781299853000,-318.22,0.00013627,2]
[424935688,1781299853000,-317.77,0.00013631,2]
[424935684,1781299853000,-751.24747,0.00013599,2]
[424935686,1781299853000,-318.34,0.00013608,2]
[424935682,1781299853000,-751.24747,0.00013599,2]
[424935685,1781299853000,-751.24747,0.00013599,2]
[424935692,1781299853000,-318.22,0.00013676,2]
[424935691,1781299853000,-318.34,0.00013667,2]
[424935689,1781299853000,-320.46,0.00013642,2]
[424935696,1781299853000,-500.0,0.00013698,2]
[424935702,1781299853000,-500.0,0.00013698,2]
[424935695,1781299853000,-500.0,0.00013698,2]
[424935694,1781299853000,-500.0,0.00013698,2]
[424935698,1781299853000,-500.0,0.00013698,2]
[424935699,1781299853000,-364.35142186,0.00013698,2]
[424935701,1781299853000,-500.0,0.00013698,2]
[424935697,1781299853000,-500.0,0.00013698,2]
[424935700,1781299853000,-151.0,0.00013698,2]